[Event "Late-Titled-Tuesday-Blitz-April-16-2024"]
[Site "Chess.com"]
[Date "2024.04.16"]
[Round "11"]
[White "Abund"]
[Black "Polish_fighter3000"]
[Result "0-1"]
[WhiteElo "2813"]
[BlackElo "3098"]
[TimeControl "180+1"]
[EndTime "16:07:04 PDT"]
[Termination "Polish_fighter3000 won by resignation"]

1. e4 {[%clk 0:03:00.9]} 1... g6 {[%clk 0:02:58.5]} 2. d4 {[%clk 0:03:00.9]}
2... Bg7 {[%clk 0:02:58.9]} 3. Nc3 {[%clk 0:03:01.6]} 3... d6 {[%clk 0:02:58.4]}
4. f4 {[%clk 0:03:01.5]} 4... Nf6 {[%clk 0:02:51.7]} 5. Nf3 {[%clk 0:02:59.5]}
5... c5 {[%clk 0:02:51.8]} 6. dxc5 {[%clk 0:02:53.2]} 6... Qa5 {[%clk
0:02:51.2]} 7. Qd3 {[%clk 0:02:51.8]} 7... Qxc5 {[%clk 0:02:49.1]} 8. Be3 {[%clk
0:02:51.9]} 8... Qa5 {[%clk 0:02:46.5]} 9. Qb5+ {[%clk 0:02:49.2]} 9... Qxb5
{[%clk 0:02:31.4]} 10. Bxb5+ {[%clk 0:02:36.3]} 10... Bd7 {[%clk 0:02:26.1]} 11.
Bd3 {[%clk 0:02:14.9]} 11... Nc6 {[%clk 0:02:19.9]} 12. a3 {[%clk 0:02:13.2]}
12... Ng4 {[%clk 0:02:13.1]} 13. Bd2 {[%clk 0:02:12.5]} 13... Nd4 {[%clk
0:02:12.9]} 14. Nxd4 {[%clk 0:02:03.5]} 14... Bxd4 {[%clk 0:02:13.8]} 15. Nd1
{[%clk 0:02:03.4]} 15... e5 {[%clk 0:02:06.5]} 16. h3 {[%clk 0:01:57]} 16... Nf6
{[%clk 0:02:06.2]} 17. c3 {[%clk 0:01:48.6]} 17... Bb6 {[%clk 0:02:06.1]} 18.
Ne3 {[%clk 0:01:46.6]} 18... Bc6 {[%clk 0:02:01.7]} 19. Ng4 {[%clk 0:01:03.2]}
19... Nd7 {[%clk 0:01:45.6]} 20. Bc2 {[%clk 0:00:52.1]} 20... h5 {[%clk
0:01:38.4]} 21. Nf2 {[%clk 0:00:46.1]} 21... Nf6 {[%clk 0:01:34.1]} 22. fxe5
{[%clk 0:00:39.5]} 22... dxe5 {[%clk 0:01:35]} 23. Bg5 {[%clk 0:00:36.1]} 23...
Nh7 {[%clk 0:01:16.1]} 24. Bd2 {[%clk 0:00:35.9]} 24... Rd8 {[%clk 0:01:07]} 25.
Rd1 {[%clk 0:00:34.1]} 25... Nf6 {[%clk 0:01:03.4]} 26. Bg5 {[%clk 0:00:20]}
26... Rxd1+ {[%clk 0:01:02.7]} 27. Kxd1 {[%clk 0:00:19.6]} 27... Nh7 {[%clk
0:01:02]} 28. Bh4 {[%clk 0:00:15.7]} 28... g5 {[%clk 0:00:58.2]} 29. Bg3 {[%clk
0:00:15.7]} 29... f6 {[%clk 0:00:46.5]} 30. Ke2 {[%clk 0:00:15.7]} 30... Nf8
{[%clk 0:00:42]} 31. Rd1 {[%clk 0:00:14.3]} 31... Ng6 {[%clk 0:00:33.3]} 32. Bd3
{[%clk 0:00:12.8]} 32... a5 {[%clk 0:00:28.5]} 33. Rd2 {[%clk 0:00:12.7]} 33...
a4 {[%clk 0:00:27.4]} 34. Nd1 {[%clk 0:00:12.3]} 34... Nf4+ {[%clk 0:00:22.8]}
35. Kf1 {[%clk 0:00:07.7]} 35... Nxd3 {[%clk 0:00:22.2]} 36. Rxd3 {[%clk
0:00:07]} 36... Bb5 {[%clk 0:00:21.8]} 37. Ke2 {[%clk 0:00:07.7]} 37... Ke7
{[%clk 0:00:20.8]} 38. Kd2 {[%clk 0:00:07.5]} 38... Bxd3 {[%clk 0:00:17.7]} 39.
Kxd3 {[%clk 0:00:08.4]} 39... h4 {[%clk 0:00:13.9]} 40. Be1 {[%clk 0:00:04.8]}
40... Rg8 {[%clk 0:00:12.9]} 41. Ke2 {[%clk 0:00:03.3]} 41... Ke6 {[%clk
0:00:09.3]} 42. Bf2 {[%clk 0:00:03.2]} 42... Bxf2 {[%clk 0:00:08.6]} 43. Nxf2
{[%clk 0:00:04.1]} 43... f5 {[%clk 0:00:08.5]} 44. exf5+ {[%clk 0:00:04.9]}
44... Kxf5 {[%clk 0:00:09.4]} 45. Ng4 {[%clk 0:00:05.7]} 45... Rd8 {[%clk
0:00:09]} 46. Ne3+ {[%clk 0:00:05.1]} 46... Ke4 {[%clk 0:00:09]} 47. Ng4 {[%clk
0:00:05.5]} 47... Rd6 {[%clk 0:00:08.6]} 48. Nf2+ {[%clk 0:00:04.9]} 48... Kf5
{[%clk 0:00:08.1]} 49. Ke3 {[%clk 0:00:04.5]} 49... Rb6 {[%clk 0:00:07.3]} 50.
Nd3 {[%clk 0:00:04.8]} 50... Rb3 {[%clk 0:00:06.8]} 51. Nc5 {[%clk 0:00:01.6]}
51... Rxb2 {[%clk 0:00:06.5]} 52. Nxa4 {[%clk 0:00:02]} 52... Rb3 {[%clk
0:00:06.5]} 53. Kd3 {[%clk 0:00:01.7]} 53... Rxa3 {[%clk 0:00:05.6]} 54. Nc5
{[%clk 0:00:02.5]} 54... b5 {[%clk 0:00:05.5]} 55. Kc2 {[%clk 0:00:02.2]} 55...
Ra2+ {[%clk 0:00:05.6]} 56. Kb3 {[%clk 0:00:02.7]} 56... Rxg2 {[%clk 0:00:06.5]}
57. Nb7 {[%clk 0:00:02.4]} 57... Ke6 {[%clk 0:00:06.3]} 58. Nc5+ {[%clk
0:00:01.8]} 58... Kd5 {[%clk 0:00:06.6]} 59. Nd3 {[%clk 0:00:02.5]} 59... Rd2
{[%clk 0:00:06.5]} 60. Ne1 {[%clk 0:00:02.4]} 60... e4 {[%clk 0:00:06.3]} 61.
Nc2 {[%clk 0:00:01.5]} 61... Rxc2 {[%clk 0:00:04.5]} 62. Kxc2 {[%clk 0:00:02.4]}
62... Kc4 {[%clk 0:00:05]} 63. Kd2 {[%clk 0:00:02.8]} 63... e3+ {[%clk
0:00:05.6]} 64. Kxe3 {[%clk 0:00:02.3]} 64... Kxc3 {[%clk 0:00:06.5]} 65. Kf3
{[%clk 0:00:02.4]} 65... b4 {[%clk 0:00:07.4]} 66. Kg4 {[%clk 0:00:03.3]} 66...
b3 {[%clk 0:00:08.3]} 67. Kxg5 {[%clk 0:00:04.2]} 67... b2 {[%clk 0:00:09.1]}
68. Kxh4 {[%clk 0:00:05.1]} 68... b1=Q {[%clk 0:00:09.8]} 69. Kg5 {[%clk
0:00:06]} 69... Qh7 {[%clk 0:00:10.2]} 70. h4 {[%clk 0:00:06.9]} 70... Kc4
{[%clk 0:00:10.7]} 71. h5 {[%clk 0:00:06.6]} 71... Kd5 {[%clk 0:00:11.6]} 72. h6
{[%clk 0:00:07.1]} 72... Ke6 {[%clk 0:00:12.5]} 73. Kf4 {[%clk 0:00:06.5]} 73...
Qxh6+ {[%clk 0:00:12.2]} 0-1

[Event "Late-Titled-Tuesday-Blitz-April-16-2024"]
[Site "Chess.com"]
[Date "2024.04.16"]
[Round "11"]
[White "mishanick"]
[Black "kleinebeer98"]
[Result "0-1"]
[WhiteElo "3034"]
[BlackElo "2914"]
[TimeControl "180+1"]
[EndTime "16:07:15 PDT"]
[Termination "kleinebeer98 won by resignation"]

1. d4 {[%clk 0:03:00.9]} 1... Nf6 {[%clk 0:02:59.7]} 2. c4 {[%clk 0:03:01.3]}
2... a6 {[%clk 0:02:59.1]} 3. Nc3 {[%clk 0:02:58]} 3... b5 {[%clk 0:02:59.7]} 4.
e3 {[%clk 0:02:57.4]} 4... bxc4 {[%clk 0:02:55.9]} 5. Bxc4 {[%clk 0:02:57.1]}
5... e6 {[%clk 0:02:54.4]} 6. Nf3 {[%clk 0:02:57.4]} 6... Bb7 {[%clk 0:02:48.5]}
7. O-O {[%clk 0:02:56.7]} 7... Be7 {[%clk 0:02:45.6]} 8. b3 {[%clk 0:02:56.7]}
8... O-O {[%clk 0:02:45.2]} 9. Bb2 {[%clk 0:02:57.4]} 9... d5 {[%clk 0:02:41.3]}
10. Bd3 {[%clk 0:02:57.4]} 10... Nbd7 {[%clk 0:02:42]} 11. Rc1 {[%clk
0:02:56.6]} 11... c5 {[%clk 0:02:41.9]} 12. Qe2 {[%clk 0:02:57.2]} 12... Qa5
{[%clk 0:02:39]} 13. Bb1 {[%clk 0:02:56.5]} 13... Rfc8 {[%clk 0:02:34.2]} 14.
Na4 {[%clk 0:02:53.3]} 14... c4 {[%clk 0:02:24.7]} 15. Bc3 {[%clk 0:02:53.2]}
15... Qd8 {[%clk 0:02:23.1]} 16. bxc4 {[%clk 0:02:49.8]} 16... Rxc4 {[%clk
0:02:22.4]} 17. Nb2 {[%clk 0:02:49.9]} 17... Rc6 {[%clk 0:02:19.8]} 18. Ne5
{[%clk 0:02:45.2]} 18... Nxe5 {[%clk 0:02:13.6]} 19. dxe5 {[%clk 0:02:46.1]}
19... Nd7 {[%clk 0:02:08.2]} 20. Bd4 {[%clk 0:02:44.7]} 20... Rac8 {[%clk
0:02:02.8]} 21. Rxc6 {[%clk 0:02:42.7]} 21... Rxc6 {[%clk 0:02:01.6]} 22. Nd3
{[%clk 0:02:43.1]} 22... a5 {[%clk 0:01:57.4]} 23. Rd1 {[%clk 0:02:37]} 23...
Ba6 {[%clk 0:01:56.3]} 24. Qg4 {[%clk 0:02:37.3]} 24... Nf8 {[%clk 0:01:54.6]}
25. g3 {[%clk 0:02:36.4]} 25... Ng6 {[%clk 0:01:46.6]} 26. h4 {[%clk 0:02:35.9]}
26... Nf8 {[%clk 0:01:40.6]} 27. h5 {[%clk 0:02:35.4]} 27... Rc4 {[%clk
0:01:34.7]} 28. Nf4 {[%clk 0:02:34.7]} 28... h6 {[%clk 0:01:33.6]} 29. Bd3
{[%clk 0:02:23.5]} 29... Rc6 {[%clk 0:01:34]} 30. Bxa6 {[%clk 0:02:24]} 30...
Rxa6 {[%clk 0:01:34.9]} 31. Rb1 {[%clk 0:02:24.2]} 31... Nh7 {[%clk 0:01:29.5]}
32. Qe2 {[%clk 0:02:15.1]} 32... Rc6 {[%clk 0:01:23.5]} 33. Qb5 {[%clk
0:02:15.1]} 33... Rc2 {[%clk 0:01:24]} 34. Qa4 {[%clk 0:02:10.8]} 34... Qc8
{[%clk 0:01:17.2]} 35. Kg2 {[%clk 0:01:38.8]} 35... Ng5 {[%clk 0:01:12.7]} 36.
Ba7 {[%clk 0:01:22.3]} 36... Qc4 {[%clk 0:00:53.3]} 37. Rb8+ {[%clk 0:00:57.7]}
37... Kh7 {[%clk 0:00:50.7]} 38. Qxc4 {[%clk 0:00:53.4]} 38... dxc4 {[%clk
0:00:51.6]} 39. a4 {[%clk 0:00:41.5]} 39... Bb4 {[%clk 0:00:37.1]} 40. Rb7
{[%clk 0:00:22.5]} 40... c3 {[%clk 0:00:28.1]} 41. Rc7 {[%clk 0:00:19.7]} 41...
Rd2 {[%clk 0:00:25.8]} 42. e4 {[%clk 0:00:13.4]} 42... Nxe4 {[%clk 0:00:15.3]}
43. Be3 {[%clk 0:00:14]} 43... Ra2 {[%clk 0:00:14.8]} 44. Rxf7 {[%clk
0:00:13.4]} 44... Bc5 {[%clk 0:00:11.7]} 45. Bxc5 {[%clk 0:00:12.2]} 45... Nxc5
{[%clk 0:00:12.6]} 46. Rc7 {[%clk 0:00:12.4]} 46... Ne4 {[%clk 0:00:10.1]} 47.
Ng6 {[%clk 0:00:12.3]} 47... Rxf2+ {[%clk 0:00:07]} 48. Kh3 {[%clk 0:00:12.5]}
48... Ng5+ {[%clk 0:00:04.8]} 49. Kg4 {[%clk 0:00:13]} 49... Ra2 {[%clk
0:00:03.6]} 50. Rxc3 {[%clk 0:00:11.6]} 50... Rxa4+ {[%clk 0:00:04.2]} 51. Nf4
{[%clk 0:00:12.1]} 51... Re4 {[%clk 0:00:03.4]} 52. Rc5 {[%clk 0:00:11.3]} 52...
a4 {[%clk 0:00:03.9]} 53. Ra5 {[%clk 0:00:11.9]} 53... Nf7 {[%clk 0:00:03.7]}
54. Ra8 {[%clk 0:00:10.5]} 54... Nxe5+ {[%clk 0:00:03.2]} 55. Kh3 {[%clk
0:00:11]} 55... Rb4 {[%clk 0:00:02.8]} 56. Nxe6 {[%clk 0:00:10.8]} 56... Nf7
{[%clk 0:00:01.9]} 57. Nf8+ {[%clk 0:00:10.6]} 57... Kg8 {[%clk 0:00:01.7]} 58.
Ng6+ {[%clk 0:00:11.5]} 58... Kh7 {[%clk 0:00:02.4]} 59. Rf8 {[%clk 0:00:06.3]}
59... Rb7 {[%clk 0:00:03]} 60. Ra8 {[%clk 0:00:06.3]} 60... Ng5+ {[%clk
0:00:02.7]} 61. Kh4 {[%clk 0:00:06.3]} 61... Nf7 {[%clk 0:00:02.6]} 62. Kh3
{[%clk 0:00:05.1]} 62... Ng5+ {[%clk 0:00:02.7]} 63. Kg2 {[%clk 0:00:05.7]}
63... Nf7 {[%clk 0:00:03.6]} 64. Rxa4 {[%clk 0:00:04.9]} 64... Rb5 {[%clk
0:00:02.9]} 65. g4 {[%clk 0:00:03]} 65... Ne5 {[%clk 0:00:02.5]} 66. Ne7 {[%clk
0:00:03.1]} 66... Rb2+ {[%clk 0:00:02]} 67. Kg3 {[%clk 0:00:03.3]} 67... Rb3+
{[%clk 0:00:02.8]} 68. Kf4 {[%clk 0:00:03.7]} 68... Nd3+ {[%clk 0:00:03.6]} 69.
Kf5 {[%clk 0:00:02.8]} 69... Rb5+ {[%clk 0:00:04.3]} 70. Nd5 {[%clk 0:00:01.3]}
70... Rxd5+ {[%clk 0:00:04.3]} 71. Ke4 {[%clk 0:00:01.6]} 71... Nc5+ {[%clk
0:00:05.1]} 72. Kxd5 {[%clk 0:00:02.3]} 72... Nxa4 {[%clk 0:00:06]} 73. Ke5
{[%clk 0:00:02.6]} 73... Kg8 {[%clk 0:00:05.5]} 74. Kf5 {[%clk 0:00:03.5]} 74...
Kf7 {[%clk 0:00:05.9]} 75. g5 {[%clk 0:00:04.4]} 75... Nc5 {[%clk 0:00:04.1]}
76. g6+ {[%clk 0:00:04.9]} 76... Ke7 {[%clk 0:00:04.2]} 77. Ke5 {[%clk
0:00:05.8]} 77... Nd7+ {[%clk 0:00:04.5]} 78. Kf5 {[%clk 0:00:06.7]} 78... Nf6
{[%clk 0:00:05.2]} 79. Kf4 {[%clk 0:00:07.2]} 79... Nxh5+ {[%clk 0:00:05.9]} 80.
Kf5 {[%clk 0:00:08.1]} 80... Nf6 {[%clk 0:00:06.3]} 81. Kf4 {[%clk 0:00:08.4]}
81... Ke6 {[%clk 0:00:06.9]} 82. Kg3 {[%clk 0:00:09.3]} 82... Kf5 {[%clk
0:00:07.8]} 0-1

[Event "Late-Titled-Tuesday-Blitz-April-16-2024"]
[Site "Chess.com"]
[Date "2024.04.16"]
[Round "11"]
[White "TheAlienParty"]
[Black "rionelG"]
[Result "1-0"]
[WhiteElo "2408"]
[BlackElo "2210"]
[TimeControl "180+1"]
[EndTime "16:07:21 PDT"]
[Termination "TheAlienParty won by resignation"]

1. Nf3 {[%clk 0:03:00.9]} 1... c5 {[%clk 0:02:58.3]} 2. b3 {[%clk 0:02:57.9]}
2... Nc6 {[%clk 0:02:57.5]} 3. e3 {[%clk 0:02:55.6]} 3... Nf6 {[%clk 0:02:51.2]}
4. Bb2 {[%clk 0:02:55.1]} 4... g6 {[%clk 0:02:51.2]} 5. d4 {[%clk 0:02:54.8]}
5... Bg7 {[%clk 0:02:51.5]} 6. dxc5 {[%clk 0:02:54.4]} 6... Qa5+ {[%clk
0:02:51]} 7. Nbd2 {[%clk 0:02:47.2]} 7... Qxc5 {[%clk 0:02:48.8]} 8. c4 {[%clk
0:02:42]} 8... O-O {[%clk 0:02:47]} 9. Bd3 {[%clk 0:02:40.6]} 9... a5 {[%clk
0:02:38.8]} 10. O-O {[%clk 0:02:39.5]} 10... d6 {[%clk 0:02:29]} 11. Qe2 {[%clk
0:02:38.5]} 11... Qh5 {[%clk 0:02:26.4]} 12. Nd4 {[%clk 0:02:26.1]} 12... Bg4
{[%clk 0:01:58]} 13. f3 {[%clk 0:02:25.2]} 13... Bd7 {[%clk 0:01:57.8]} 14. Nb5
{[%clk 0:02:19.7]} 14... a4 {[%clk 0:01:48]} 15. Ne4 {[%clk 0:01:46.6]} 15...
Nxe4 {[%clk 0:01:05.7]} 16. Bxg7 {[%clk 0:01:44.9]} 16... Kxg7 {[%clk
0:01:03.9]} 17. Bxe4 {[%clk 0:01:44.5]} 17... axb3 {[%clk 0:01:03]} 18. axb3
{[%clk 0:01:44.2]} 18... Qc5 {[%clk 0:00:55]} 19. Nc7 {[%clk 0:01:16.2]} 19...
Rxa1 {[%clk 0:00:54.3]} 20. Rxa1 {[%clk 0:01:15.7]} 20... f5 {[%clk 0:00:49]}
21. Bxc6 {[%clk 0:01:11.3]} 21... Qxc6 {[%clk 0:00:42.4]} 22. Nd5 {[%clk
0:01:09.3]} 22... e6 {[%clk 0:00:37.8]} 23. Qb2+ {[%clk 0:01:07.5]} 23... e5
{[%clk 0:00:34.3]} 24. Rd1 {[%clk 0:01:02.1]} 24... Ra8 {[%clk 0:00:31.9]} 25.
f4 {[%clk 0:01:01.4]} 25... Qc5 {[%clk 0:00:25.2]} 26. fxe5 {[%clk 0:00:59.9]}
26... dxe5 {[%clk 0:00:08]} 27. Qxe5+ {[%clk 0:00:59]} 27... Kh6 {[%clk
0:00:08.6]} 28. Qc7 {[%clk 0:00:48.9]} 28... Bc6 {[%clk 0:00:05]} 29. Qf4+
{[%clk 0:00:36.2]} 29... Kg7 {[%clk 0:00:04.9]} 30. Qe5+ {[%clk 0:00:35]} 30...
Kh6 {[%clk 0:00:05]} 31. h4 {[%clk 0:00:32.4]} 31... Ra2 {[%clk 0:00:03.9]} 32.
h5 {[%clk 0:00:29]} 32... Bxd5 {[%clk 0:00:02.8]} 33. cxd5 {[%clk 0:00:27]}
33... Qc2 {[%clk 0:00:02.5]} 34. Qf4+ {[%clk 0:00:23.6]} 34... Kxh5 {[%clk
0:00:02.9]} 35. Qf3+ {[%clk 0:00:21.4]} 35... Kh6 {[%clk 0:00:02.8]} 36. d6
{[%clk 0:00:19.5]} 36... Ra8 {[%clk 0:00:02.7]} 37. d7 {[%clk 0:00:18.8]} 37...
Rd8 {[%clk 0:00:02.9]} 38. Rd4 {[%clk 0:00:17.5]} 38... Qc1+ {[%clk 0:00:02.5]}
39. Kh2 {[%clk 0:00:17]} 39... Qc7+ {[%clk 0:00:03.1]} 40. Kh3 {[%clk
0:00:14.3]} 40... Rxd7 {[%clk 0:00:01.9]} 41. Rh4+ {[%clk 0:00:14]} 41... Kg7
{[%clk 0:00:01.8]} 42. Qf4 {[%clk 0:00:13.8]} 42... Qxf4 {[%clk 0:00:01.4]} 43.
Rxf4 {[%clk 0:00:13.2]} 43... Rd3 {[%clk 0:00:01.4]} 44. Rb4 {[%clk 0:00:12.7]}
44... Rxe3+ {[%clk 0:00:02]} 45. Kh4 {[%clk 0:00:12.2]} 45... Re7 {[%clk
0:00:02.9]} 46. Kg3 {[%clk 0:00:11.1]} 46... h6 {[%clk 0:00:03.8]} 47. Kf4
{[%clk 0:00:11.4]} 47... Rc7 {[%clk 0:00:04.2]} 48. g4 {[%clk 0:00:11.9]} 48...
Re7 {[%clk 0:00:04.8]} 49. gxf5 {[%clk 0:00:12.1]} 49... g5+ {[%clk 0:00:04.4]}
50. Kg4 {[%clk 0:00:11.8]} 50... Kf6 {[%clk 0:00:04.4]} 51. Rb6+ {[%clk
0:00:12.4]} 51... Kf7 {[%clk 0:00:04.9]} 52. Rxh6 {[%clk 0:00:12.5]} 52... Re4+
{[%clk 0:00:05.4]} 53. Kxg5 {[%clk 0:00:12.7]} 53... Rb4 {[%clk 0:00:05.9]} 54.
Rh7+ {[%clk 0:00:12.8]} 54... Kg8 {[%clk 0:00:06.3]} 55. Rc7 {[%clk 0:00:12.6]}
55... Rxb3 {[%clk 0:00:06.4]} 56. Kg6 {[%clk 0:00:13.1]} 56... Rg3+ {[%clk
0:00:03.9]} 57. Kf6 {[%clk 0:00:13.2]} 57... Rb3 {[%clk 0:00:04.5]} 58. Rc8+
{[%clk 0:00:12.8]} 58... Kh7 {[%clk 0:00:04.4]} 59. Kf7 {[%clk 0:00:13.1]} 59...
Rd3 {[%clk 0:00:02.4]} 60. f6 {[%clk 0:00:12.3]} 60... Rd7+ {[%clk 0:00:02.1]}
61. Kf8 {[%clk 0:00:12.5]} 61... Kg6 {[%clk 0:00:01.9]} 62. Ke8 {[%clk
0:00:12.4]} 62... Rf7 {[%clk 0:00:02.1]} 63. Rc1 {[%clk 0:00:12]} 63... Rxf6
{[%clk 0:00:02.9]} 64. Rg1+ {[%clk 0:00:10.6]} 64... Kf5 {[%clk 0:00:03.3]} 65.
Rf1+ {[%clk 0:00:10.9]} 65... Ke6 {[%clk 0:00:03.9]} 66. Rb1 {[%clk 0:00:10.7]}
66... Kd5 {[%clk 0:00:02.4]} 67. Rb5+ {[%clk 0:00:10.7]} 67... Kc6 {[%clk
0:00:02.2]} 68. Rb1 {[%clk 0:00:10.9]} 68... b5 {[%clk 0:00:02.4]} 69. Rc1+
{[%clk 0:00:11.2]} 69... Kb6 {[%clk 0:00:02.4]} 70. Kd7 {[%clk 0:00:11.3]} 70...
b4 {[%clk 0:00:01.5]} 71. Ke7 {[%clk 0:00:11.3]} 71... Kb5 {[%clk 0:00:02.4]}
72. Kxf6 {[%clk 0:00:11.3]} 72... Ka4 {[%clk 0:00:03.3]} 73. Ke5 {[%clk
0:00:11.4]} 73... Ka3 {[%clk 0:00:03.7]} 74. Kd4 {[%clk 0:00:11.8]} 74... b3
{[%clk 0:00:04.4]} 75. Kc3 {[%clk 0:00:12.1]} 75... b2 {[%clk 0:00:04.4]} 76.
Rb1 {[%clk 0:00:12.3]} 76... Ka2 {[%clk 0:00:05.3]} 77. Kc2 {[%clk 0:00:13]}
77... Ka3 {[%clk 0:00:06.2]} 78. Rxb2 {[%clk 0:00:12.4]} 1-0

[Event "Late-Titled-Tuesday-Blitz-April-16-2024"]
[Site "Chess.com"]
[Date "2024.04.16"]
[Round "11"]
[White "divudis17"]
[Black "N_I_Chess"]
[Result "0-1"]
[WhiteElo "2538"]
[BlackElo "2398"]
[TimeControl "180+1"]
[EndTime "16:07:28 PDT"]
[Termination "N_I_Chess won on time"]

1. e4 {[%clk 0:03:00.9]} 1... Nf6 {[%clk 0:02:58.2]} 2. e5 {[%clk 0:03:00.9]}
2... Nd5 {[%clk 0:02:55.5]} 3. d4 {[%clk 0:03:01.5]} 3... d6 {[%clk 0:02:55.7]}
4. c4 {[%clk 0:03:02.2]} 4... Nb6 {[%clk 0:02:55.8]} 5. f4 {[%clk 0:03:02.9]}
5... g6 {[%clk 0:02:55.3]} 6. Be3 {[%clk 0:02:59.2]} 6... Bg7 {[%clk 0:02:53.5]}
7. Nc3 {[%clk 0:02:59.9]} 7... dxe5 {[%clk 0:02:52]} 8. fxe5 {[%clk 0:02:56.1]}
8... c5 {[%clk 0:02:52.5]} 9. d5 {[%clk 0:02:52.2]} 9... Bxe5 {[%clk 0:02:52.1]}
10. Nf3 {[%clk 0:02:48.9]} 10... Bg7 {[%clk 0:02:50.7]} 11. Bxc5 {[%clk
0:02:45.6]} 11... Bg4 {[%clk 0:02:38.5]} 12. Bd4 {[%clk 0:02:40.6]} 12... f6
{[%clk 0:02:23.8]} 13. h3 {[%clk 0:02:31.8]} 13... Bc8 {[%clk 0:02:20]} 14. Qb3
{[%clk 0:02:14.6]} 14... O-O {[%clk 0:01:56.4]} 15. c5 {[%clk 0:02:13.8]} 15...
N6d7 {[%clk 0:01:53.5]} 16. c6 {[%clk 0:02:08.5]} 16... Nb6 {[%clk 0:01:41.9]}
17. d6+ {[%clk 0:02:03.2]} 17... Kh8 {[%clk 0:01:40.2]} 18. c7 {[%clk
0:01:58.1]} 18... Qxd6 {[%clk 0:01:40.4]} 19. cxb8=Q {[%clk 0:01:58.1]} 19...
Rxb8 {[%clk 0:01:37.1]} 20. O-O-O {[%clk 0:01:57.7]} 20... Be6 {[%clk
0:01:32.2]} 21. Qa3 {[%clk 0:01:51.9]} 21... Qf4+ {[%clk 0:01:31.8]} 22. Kb1
{[%clk 0:01:51.6]} 22... Bf5+ {[%clk 0:01:16.7]} 23. Bd3 {[%clk 0:01:51]} 23...
e5 {[%clk 0:01:17.2]} 24. Bxb6 {[%clk 0:01:48.1]} 24... axb6 {[%clk 0:01:16.3]}
25. Bxf5 {[%clk 0:01:42.5]} 25... Qxf5+ {[%clk 0:01:17.2]} 26. Ka1 {[%clk
0:01:41.7]} 26... Qe6 {[%clk 0:01:05.3]} 27. Qb3 {[%clk 0:01:41.6]} 27... Qc6
{[%clk 0:01:02]} 28. Rhe1 {[%clk 0:01:36.2]} 28... Rbe8 {[%clk 0:00:57.3]} 29.
Qd5 {[%clk 0:01:31.1]} 29... Re6 {[%clk 0:00:46.2]} 30. Qxc6 {[%clk 0:01:12.6]}
30... bxc6 {[%clk 0:00:44.9]} 31. Na4 {[%clk 0:01:13.2]} 31... c5 {[%clk
0:00:38.3]} 32. Nc3 {[%clk 0:01:11.7]} 32... f5 {[%clk 0:00:36.3]} 33. Ng5
{[%clk 0:01:04]} 33... Re7 {[%clk 0:00:30.9]} 34. Nd5 {[%clk 0:01:02.2]} 34...
Rb7 {[%clk 0:00:26.7]} 35. Ne6 {[%clk 0:01:01.9]} 35... Re8 {[%clk 0:00:23.2]}
36. Ndc7 {[%clk 0:00:54]} 36... Rc8 {[%clk 0:00:18.3]} 37. Rd7 {[%clk
0:00:33.1]} 37... Bf8 {[%clk 0:00:08.3]} 38. Red1 {[%clk 0:00:30.7]} 38... Kg8
{[%clk 0:00:06.6]} 39. Rd8 {[%clk 0:00:30.9]} 39... Rbb8 {[%clk 0:00:06.1]} 40.
Rxc8 {[%clk 0:00:21.2]} 40... Rxc8 {[%clk 0:00:06.1]} 41. Nxf8 {[%clk
0:00:21.9]} 41... Kxf8 {[%clk 0:00:04.4]} 42. Nd5 {[%clk 0:00:21.1]} 42... Rd8
{[%clk 0:00:02.8]} 43. Ne3 {[%clk 0:00:19.8]} 43... Re8 {[%clk 0:00:02.6]} 44.
Nc4 {[%clk 0:00:19.3]} 44... e4 {[%clk 0:00:02.3]} 45. Nxb6 {[%clk 0:00:18.7]}
45... e3 {[%clk 0:00:02.2]} 46. Re1 {[%clk 0:00:18.6]} 46... f4 {[%clk
0:00:02.6]} 47. Kb1 {[%clk 0:00:19.1]} 47... g5 {[%clk 0:00:02.4]} 48. Kc2
{[%clk 0:00:19.4]} 48... Kg7 {[%clk 0:00:02.9]} 49. a4 {[%clk 0:00:19.8]} 49...
Kg6 {[%clk 0:00:03.3]} 50. a5 {[%clk 0:00:20.4]} 50... Rb8 {[%clk 0:00:02.5]}
51. Kc3 {[%clk 0:00:19.5]} 51... Kf5 {[%clk 0:00:03]} 52. Kc4 {[%clk 0:00:19.6]}
52... Ke4 {[%clk 0:00:03.8]} 53. Kxc5 {[%clk 0:00:19.7]} 53... h5 {[%clk
0:00:04.5]} 54. a6 {[%clk 0:00:19.6]} 54... g4 {[%clk 0:00:04.8]} 55. hxg4
{[%clk 0:00:20.2]} 55... hxg4 {[%clk 0:00:04.5]} 56. a7 {[%clk 0:00:21.1]} 56...
Re8 {[%clk 0:00:04]} 57. a8=Q+ {[%clk 0:00:21.4]} 57... Rxa8 {[%clk 0:00:03.7]}
58. Nxa8 {[%clk 0:00:22.3]} 58... f3 {[%clk 0:00:04.1]} 59. gxf3+ {[%clk
0:00:22.1]} 59... gxf3 {[%clk 0:00:05]} 60. b4 {[%clk 0:00:22.8]} 60... f2
{[%clk 0:00:05.1]} 61. Ra1 {[%clk 0:00:17.9]} 61... e2 {[%clk 0:00:04.2]} 62. b5
{[%clk 0:00:16.7]} 62... e1=Q {[%clk 0:00:03.1]} 63. Rxe1+ {[%clk 0:00:15.7]}
63... fxe1=Q {[%clk 0:00:04]} 64. b6 {[%clk 0:00:13.5]} 64... Qc1+ {[%clk
0:00:03.4]} 65. Kd6 {[%clk 0:00:12.6]} 65... Qb2 {[%clk 0:00:02.7]} 66. Kc7
{[%clk 0:00:11.6]} 66... Qc3+ {[%clk 0:00:02.5]} 67. Kb8 {[%clk 0:00:11.6]}
67... Qh8+ {[%clk 0:00:01.6]} 68. Ka7 {[%clk 0:00:11.6]} 68... Qa1+ {[%clk
0:00:01.6]} 69. Kb8 {[%clk 0:00:12]} 69... Kd5 {[%clk 0:00:01.9]} 70. Kb7 {[%clk
0:00:06.1]} 70... Qg7+ {[%clk 0:00:01.3]} 71. Nc7+ {[%clk 0:00:06.6]} 71... Kd6
{[%clk 0:00:01.1]} 72. Ka6 {[%clk 0:00:05.3]} 72... Qd7 {[%clk 0:00:01.7]} 73.
Nb5+ {[%clk 0:00:03.1]} 73... Kc5 {[%clk 0:00:01.6]} 74. Nc7 {[%clk 0:00:02.6]}
74... Qc6 {[%clk 0:00:01.8]} 0-1